{"text_format":"3","workbook":"xlsx","n_sheets":3,"sheets":["Nachlassinventar","Nachlassvermögen","Nachlassverbindlichkeiten"],"not_rendered":{"defined_names":1},"read":"whole","date_system":"1900"}

{"sheet":"Nachlassinventar","index":0,"n_rows":45,"n_cols":35,"rows_kept":45,"merged":[[0,1,0,30],[0,31,0,39],[1,1,5,39],[6,1,6,6],[6,7,6,39],[7,1,7,6],[7,7,7,39],[9,1,9,6],[9,7,9,39],[10,1,10,6],[10,7,10,39],[11,1,11,6],[11,7,11,20],[11,21,11,26],[11,27,11,30],[11,31,11,33],[11,34,11,39],[12,1,12,6],[12,7,12,20],[12,21,12,26],[13,1,13,6],[13,7,13,20],[13,21,13,26],[14,1,14,6],[14,7,14,20],[14,21,14,26],[15,1,15,6],[17,1,17,39],[18,1,18,6],[18,7,18,12],[18,13,18,15],[18,16,18,18],[18,19,18,26],[18,27,18,31],[18,32,18,39],[19,1,19,6],[19,7,19,12],[19,13,19,15],[19,16,19,18],[19,19,19,26],[19,27,19,31],[19,32,19,39],[20,1,20,6],[20,7,20,12],[20,13,20,15],[20,16,20,18],[20,19,20,26],[20,27,20,31],[20,32,20,39],[21,1,21,6],[21,7,21,12],[21,13,21,15],[21,16,21,18],[21,19,21,26],[21,27,21,31],[21,32,21,39],[22,1,22,6],[22,7,22,12],[22,13,22,15],[22,16,22,18],[22,19,22,26],[22,27,22,31],[22,32,22,39],[23,1,23,6],[23,7,23,12],[23,13,23,15],[23,16,23,18],[23,19,23,26],[23,27,23,31],[23,32,23,39],[25,1,25,39],[26,1,26,6],[26,7,26,12],[26,13,26,18],[26,19,26,26],[26,27,26,31],[26,32,26,39],[27,1,27,6],[27,7,27,12],[27,13,27,18],[27,19,27,26],[27,27,27,31],[27,32,27,39],[28,1,28,6],[28,7,28,12],[28,13,28,18],[28,19,28,26],[28,27,28,31],[28,32,28,39],[29,1,29,6],[29,7,29,12],[29,13,29,18],[29,19,29,26],[29,27,29,31],[29,32,29,39],[30,1,30,6],[30,7,30,12],[30,13,30,18],[30,19,30,26],[30,27,30,31],[30,32,30,39],[31,1,31,6],[31,7,31,12],[31,13,31,18],[31,19,31,26],[31,27,31,31],[31,32,31,39],[33,1,33,12],[33,14,33,39],[34,1,34,12],[34,14,34,21],[34,22,34,25],[34,26,34,33],[34,34,34,39],[35,2,35,12],[35,14,35,21],[35,22,35,25],[35,26,35,33],[35,34,35,39],[36,2,36,12],[36,14,36,21],[36,22,36,25],[36,26,36,33],[36,34,36,39],[37,2,37,12],[37,14,37,21],[37,22,37,25],[37,26,37,33],[37,34,37,39],[38,2,38,12],[38,14,38,21],[38,22,38,25],[38,26,38,33],[38,34,38,39],[39,2,39,12],[39,14,39,21],[39,22,39,25],[39,26,39,33],[39,34,39,39],[40,2,40,12],[40,14,40,21],[40,22,40,25],[40,26,40,33],[40,34,40,39],[41,2,41,12],[41,14,41,21],[41,22,41,25],[41,26,41,33],[41,34,41,39],[42,2,42,12],[42,14,42,21],[42,22,42,25],[42,26,42,33],[42,34,42,38],[43,2,43,12],[43,14,43,21],[43,22,43,25],[43,26,43,33],[43,34,43,39],[44,2,44,12],[44,14,44,21],[44,22,44,25],[44,26,44,33],[44,34,44,39]]}
[]
[null,"Nachlassinventar"]
[]
[]
[]
[]
[null,"Name(n) der(s) Testamentsvollstrecker(s)",{"$nulls":5},"Jan Sachweh"]
[null,"Kontaktinformationen",{"$nulls":5},"Hauptstraße 456, 53456 Bonn"]
[]
[null,"Name des/r Verstorbenen",{"$nulls":5},"August Bergquist"]
[null,"Straße und Hausnummer",{"$nulls":5},"Hauptstraße 6789"]
[null,"Stadt",{"$nulls":5},"Buffalo",{"$nulls":13},"Bundesland",{"$nulls":5},"NY",{"$nulls":3},"PLZ",null,null,98052]
[null,"SSN",{"$nulls":5},"AAA-GG-SSSS",{"$nulls":13},"Beruf",{"$nulls":5},"Zahnarzt"]
[null,"Geburtsdatum",{"$nulls":5},"1965-12-08",{"$nulls":13},"Geburtsort",{"$nulls":5},"NY"]
[null,"Datum des Todes",{"$nulls":5},{"$f":"TODAY()-3","v":"2022-05-10"},{"$nulls":13},"Ort des Todes",{"$nulls":5},"NY"]
[null,"Weitere Informationen"]
[]
[null,"  Ehepartner/in, Kinder und andere Abhängige"]
[null,"Name",{"$nulls":5},"Beziehung",{"$nulls":5},"Abhängig",null,null,"Alter",null,null,"Adresse",{"$nulls":7},"Telefonnummer",{"$nulls":4},"E-Mail"]
[null,"Mirjam Nilsson",{"$nulls":5},"Persönlicher Vertreter",{"$nulls":5},"Nein",null,null,30]
[null,"Victoria Lindqvist",{"$nulls":5},"Ehepartner/in",{"$nulls":5},"Ja",null,null,35]
[null,"Alexander Martensson",{"$nulls":5},"Kind",{"$nulls":5},"Ja",null,null,12]
[]
[]
[]
[null,"Professionelle Berater"]
[null,"Beratertyp",{"$nulls":5},"Kontaktperson",{"$nulls":5},"Unternehmen",{"$nulls":5},"Adresse",{"$nulls":7},"Telefonnummer",{"$nulls":4},"E-Mail"]
[null,"Wirtschaftsprüferin"]
[null,"Anwalt/Notar"]
[null,"Sonstiges"]
[]
[]
[]
[null,"  Nachlasscheckliste",{"$nulls":12},"  Nachlassinventar"]
[null,"    Checklistenelemente",{"$nulls":12},"Nachlassvermögen",{"$nulls":7},"Wert (€)",{"$nulls":3},"Nachlassverbindlichkeiten",{"$nulls":7},"Wert (€)"]
[null,"✔","Letzter Wille, Testament oder andere Dokumente",{"$nulls":11},{"$f":"Nachlassvermögen!B12","v":"Bankkonten"},{"$nulls":7},{"$f":"Nachlassvermögen!G20","v":{"v":0,"d":"0.00 €"}},{"$nulls":3},{"$f":"Nachlassverbindlichkeiten!B11","v":"Hypotheken"},{"$nulls":7},{"$f":"Nachlassverbindlichkeiten!G18","v":{"v":0,"d":"0.00 €"}}]
[null,"✔","Bankschließfachverwahrungsvertrag und Schlüssel",{"$nulls":11},{"$f":"Nachlassvermögen!B22","v":"Persönliche Investitionen"},{"$nulls":7},{"$f":"Nachlassvermögen!G30","v":{"v":0,"d":"0.00 €"}},{"$nulls":3},{"$f":"Nachlassverbindlichkeiten!B21","v":"Private Kredite und Dispokredite"},{"$nulls":7},{"$f":"Nachlassverbindlichkeiten!G28","v":{"v":0,"d":"0.00 €"}}]
[null,"✖","Kennwörter für Computer und Onlinekonten",{"$nulls":11},{"$f":"Nachlassvermögen!B32","v":"Unternehmensbeteiligungen"},{"$nulls":7},{"$f":"Nachlassvermögen!G40","v":{"v":0,"d":"0.00 €"}},{"$nulls":3},{"$f":"Nachlassverbindlichkeiten!B31","v":"Unternehmensbeteiligungen"},{"$nulls":7},{"$f":"Nachlassverbindlichkeiten!G38","v":{"v":0,"d":"0.00 €"}}]
[null,"✔","Lebenslängliche Treuhandverwaltungsvereinbarungen",{"$nulls":11},{"$f":"Nachlassvermögen!B42","v":"Immobilien- und Grundbesitz"},{"$nulls":7},{"$f":"Nachlassvermögen!G50","v":{"v":0,"d":"0.00 €"}},{"$nulls":3},{"$f":"Nachlassverbindlichkeiten!B41","v":"Kreditkarten"},{"$nulls":7},{"$f":"Nachlassverbindlichkeiten!G48","v":{"v":0,"d":"0.00 €"}}]
[null,"✔","Lebensversicherungen, Gesundheits-/Krankenversicherungen und Versicherungspolicen",{"$nulls":11},{"$f":"Nachlassvermögen!B52","v":"Altersvorsorge"},{"$nulls":7},{"$f":"Nachlassvermögen!G60","v":{"v":0,"d":"0.00 €"}},{"$nulls":3},{"$f":"Nachlassverbindlichkeiten!B51","v":"Andere Verbindlichkeiten"},{"$nulls":7},{"$f":"Nachlassverbindlichkeiten!G58","v":{"v":0,"d":"0.00 €"}}]
[null,"✔","Vermögensaufstellungen",{"$nulls":11},{"$f":"Nachlassvermögen!B62","v":"Versicherung"},{"$nulls":7},{"$f":"Nachlassvermögen!G70","v":{"v":0,"d":"0.00 €"}}]
[null,"✔","Steuererklärungen für die letzten drei Jahre",{"$nulls":11},{"$f":"Nachlassvermögen!B72","v":"Private Darlehen und Hypotheken"},{"$nulls":7},{"$f":"Nachlassvermögen!G80","v":{"v":0,"d":"0.00 €"}}]
[null,"✔","Geburts- und Todesurkunden",{"$nulls":11},{"$f":"Nachlassvermögen!B82","v":"Beteiligung an anderen Vermögen und Fonds"},{"$nulls":7},{"$f":"Nachlassvermögen!G90","v":{"v":0,"d":"0.00 €"}}]
[null,"✖","Urkunden-, Hypotheken- und Leasing-Aufstellungen",{"$nulls":11},{"$f":"Nachlassvermögen!B92","v":"Persönliche Gebrauchsgegenstände und andere Vermögenswerte"},{"$nulls":7},{"$f":"Nachlassvermögen!G100","v":{"v":0,"d":"0.00 €"}}]
[null,"☐","Nicht bezahlte Rechnungen und Forderungen",{"$nulls":11},"Gesamtvermögen",{"$nulls":7},{"$f":"Nachlassvermögen!G10","v":{"v":0,"d":"0.00 €"}},{"$nulls":3},"Gesamtverbindlichkeiten",{"$nulls":7},{"$f":"SUM(AI36:AN44)","v":{"v":0,"d":"0.00 €"}}]

{"sheet":"Nachlassvermögen","index":1,"n_rows":100,"n_cols":8,"rows_kept":100,"merged":[[0,1,0,7],[1,1,5,7],[6,1,7,7],[11,1,11,7],[12,1,12,7],[21,1,21,7],[22,1,22,7],[31,1,31,7],[32,1,32,7],[41,1,41,7],[42,1,42,7],[51,1,51,7],[52,1,52,7],[61,1,61,7],[62,1,62,7],[71,1,71,7],[72,1,72,7],[81,1,81,7],[82,1,82,7],[91,1,91,7],[92,1,92,7]]}
[]
[null,"Nachlassvermögen"]
[]
[]
[]
[]
[null,"Verwenden Sie dieses Arbeitsblatt, um eine Inventur des Nachlassvermögens zu erstellen. Sie müssen den Marktwert der einzelnen Nachlassvermögensgegenstände zum Zeitpunkt des Todes ermitteln. Überprüfen Sie alle Einträge, einschließlich Vermögensaufstellungen, Versicherungspolicen und Steuererklärungen, um den Marktwert festzustellen. Möglicherweise müssen Sie auch persönliche Objekte (d. h. Kunstarbeiten, Sammlungen, Antiquitäten usw.) schätzen lassen. Stellen Sie sicher, dass sie auch alle Vermögenswerte im Ausland in den Bestand aufnehmen, z. B. Immobilien, Wertpapiere oder Unternehmensbeteiligungen im Ausland. Möglicherweise möchten Sie professionelle Unterstützung erhalten, um einen genauen Marktwert für Vermögenswerte im Ausland festzustellen."]
[]
[]
[null,"Vermögenswerte insgesamt",{"$nulls":4},{"$f":"tblBankAccounts[[#Totals],[Saldo ]]+tblPersonalInvestments[[#Totals],[Marktwert]]+tblBusinessInterests[[#Totals],[Wert ]]+tblRealEstate[[#Totals],[Marktpreis]]+tblPensionPlans[[#Totals],[Wert ]]+tblInsurance[[#Totals],[Barwert ]]+tblMortgages[[#Totals],[Schuldbetrag ]]+tblTrusts[[#Totals],[Verteilungsbetrag]]+tblOtherAssets[[#Totals],[Wert ]]","v":{"v":0,"d":"0.00 €"}}]
[]
[null,"Bankkonten"]
[null,"Listen Sie alle Bankkonten auf, einschließlich Bargeld, Reisechecks, Zahlungsanweisungen und Konten bei Geschäftsbanken, Privatbanken, Kreditkartenanbietern usw. Schließen Sie alle Namen ein, die auf dem Konto aufgeführt sind, und den tatsächlichen Bargeldwert, der sich auf den genauen Dollar- und Wechselgeldbetrag zum Zeitpunkt des Tod bezieht."]
[null,"Finanzinstitut ","Adresse","Telefon","Kontonummer","Kontotyp","Saldo ","Anmerkungen"]
[]
[]
[]
[]
[]
[null,"Ergebnis",{"$nulls":4},{"$f":"SUBTOTAL(109,tblBankAccounts[[Saldo ]])","v":{"v":0,"d":"0.00 €"}}]
[]
[null,"Persönliche Investitionen"]
[null,"Listen Sie Geldkonten, Einschusskonten, steuerbefreite Sparkonten, Rentensparpläne (Registered Retirement Savings Plan, RRSP), Rentenfonds (Registered Retirement Income Funds, RRIFs), Locked-in RRIFs, Locked-in RRSPs, Einkommensfonds, Rentenfonds (Prescribed Retirement Income Funds), Bildungssparpläne (Registered Education Savings Plans), Zusatzrenten, etc."]
[null,"Unternehmen","Adresse","Telefon","Kontonummer","Begünstigter","Marktwert","Anmerkungen"]
[]
[]
[]
[]
[]
[null,"Ergebnis",{"$nulls":4},{"$f":"SUBTOTAL(109,tblPersonalInvestments[Marktwert])","v":{"v":0,"d":"0.00 €"}}]
[]
[null,"Unternehmensbeteiligungen"]
[null,"Listen Sie alle Unternehmensbeteiligungen auf, einschließlich alleiniger Eigentümerschaft, beruflicher Praxen, Aktiengesellschaften, Partnerschaften, Kapitalgesellschaften/GmbHs und Partnerschaften mit beschränkter Haftung, Joint-Venture-Unternehmen und andere nicht börsennotierten Unternehmen. "]
[null,"Firmenname","Adresse","Telefon","Kontakt","Art","Wert ","Anmerkungen"]
[]
[]
[]
[]
[]
[null,"Ergebnis",{"$nulls":4},{"$f":"SUBTOTAL(109,tblBusinessInterests[[Wert ]])","v":{"v":0,"d":"0.00 €"}}]
[]
[null,"Immobilien- und Grundbesitz"]
[null,"Listen Sie das vollständige Eigentum auf bei dem der/die Verstorbene und/oder der/die hinterbliebene Ehepartner/in Besitzer oder gemeinsamer Besitzer sind oder in irgendeiner Form ein Interesse daran haben, einschließlich in Urlaubs- und Freizeitanlagen erworbenen Eigentums und Timesharing-Immobilien. Fordern Sie Kopien der Urkunden an. Geben Sie eine Beschreibung der Immobilien mit ihrer physischen Adresse an. Listen Sie den fairen Marktwert des Eigentums basierend auf der letzten Schätzung durch den Steuer-Gutachter auf."]
[null,"Adresse","Inhaber/in des Titels","Telefon","Kontakt","Kaufpreis","Marktpreis","Anmerkungen"]
[]
[]
[]
[]
[]
[null,"Ergebnis",{"$nulls":3},{"$f":"SUBTOTAL(109,tblRealEstate[Kaufpreis])","v":{"v":0,"d":"0.00 €"}},{"$f":"SUBTOTAL(109,tblRealEstate[Marktpreis])","v":{"v":0,"d":"0.00 €"}}]
[]
[null,"Altersvorsorge"]
[null,"Listen Sie definierte Leistungen, Geldkäufe oder definierte Beiträge, Arbeitgeberzahlungen zur Rente (Deferred Profit Sharing Plan, DPSP) oder Gruppen-Rentensparpläne (Registered Retirement Savings Plan, RRSP) usw. auf."]
[null,"Unternehmen","Telefon","Plantyp","Begünstigter","E-Mail","Wert ","Anmerkungen"]
[]
[]
[]
[]
[]
[null,"Ergebnis",{"$nulls":4},{"$f":"SUBTOTAL(109,tblPensionPlans[[Wert ]])","v":{"v":0,"d":"0.00 €"}}]
[]
[null,"Versicherung"]
[null,"Schließen Sie lebenslängliche Treuhandverwaltung, Lebensversicherungspolicen mit benannten Empfängern und Investitionskonten, die nach dem Tod übertragen wurden, als Nicht-Nachlassvermögen ein. Wenn das Gericht nach diesen Vermögenswerten fragt, kann der Testamentsvollstrecker problemlos auf die Liste des Nicht-Nachlassvermögens verweisen und deren Abwesenheit aus dem Nachlassinventar erklären."]
[null,"Emittenten","Nummer der Police","Telefon","Begünstigter","Nominalwert ","Barwert ","Anmerkungen"]
[]
[]
[]
[]
[]
[null,"Ergebnis",{"$nulls":3},{"$f":"SUBTOTAL(109,tblInsurance[[Nominalwert ]])","v":{"v":0,"d":"0.00 €"}},{"$f":"SUBTOTAL(109,tblInsurance[[Barwert ]])","v":{"v":0,"d":"0.00 €"}}]
[]
[null,"Private Darlehen und Hypotheken"]
[null,"Listen Sie private Darlehen und Hypotheken auf, bei denen die verstorbenen Person Kreditnehmers war."]
[null,"Name des Kreditnehmers","Adresse","Telefon","Art","Ursprünglicher Betrag","Schuldbetrag ","Anmerkungen"]
[]
[]
[]
[]
[]
[null,"Ergebnis",{"$nulls":3},{"$f":"SUBTOTAL(109,tblMortgages[Ursprünglicher Betrag])","v":{"v":0,"d":"0.00 €"}},{"$f":"SUBTOTAL(109,tblMortgages[[Schuldbetrag ]])","v":{"v":0,"d":"0.00 €"}}]
[]
[null,"Beteiligung an anderen Vermögen und Fonds"]
[null,"Listen Sie Vermögenswerte auf, die im Namen der verstorbenen Person für andere Personen registriert sind (z. B. Objekte, die von der verstorbenen Person als Nachlassverwalter oder als Bevollmächtigter aufbewahrt werden)."]
[null,"Name des Vermögens/Fonds","Name des Testamentsvollstreckers/Nachlassverwalters","Telefon","Adresse","E-Mail","Verteilungsbetrag","Anmerkungen"]
[]
[]
[]
[]
[]
[null,"Ergebnis",{"$nulls":4},{"$f":"SUBTOTAL(109,tblTrusts[Verteilungsbetrag])","v":{"v":0,"d":"0.00 €"}}]
[]
[null,"Persönliche Gebrauchsgegenstände und andere Vermögenswerte"]
[null,"Listen Sie alle persönlichen Gegenstände auf, wie z. B. Autos, Schmuck, Kunstobjekte, Antiquitäten, Möbel. Schließen Sie Gegenständen ein, die möglicherweise in einem Bankschließfach oder einer sicheren Aufbewahrung hinterlegt waren."]
[null,"Beschreibung des Gegenstandes","Ort","Telefon","Kontakt","Begünstigter","Wert ","Anmerkungen"]
[]
[]
[]
[]
[]
[null,"Ergebnis",{"$nulls":4},{"$f":"SUBTOTAL(109,tblOtherAssets[[Wert ]])","v":{"v":0,"d":"0.00 €"}}]

{"sheet":"Nachlassverbindlichkeiten","index":2,"n_rows":58,"n_cols":8,"rows_kept":58,"merged":[[0,1,0,7],[1,1,5,7],[6,1,6,7],[10,1,10,7],[20,1,20,7],[30,1,30,7],[40,1,40,7],[50,1,50,7]]}
[]
[null,"Nachlassverbindlichkeiten"]
[]
[]
[]
[]
[null,"Verwenden Sie dieses Arbeitsblatt, um die Details der Nachlassverbindlichkeiten im In- und Ausland festzuhalten. Sie benötigen ein Wertgutachten für jede Verbindlichkeit mit Stand des Datum des Tods."]
[]
[null,"Vermögenswerte insgesamt",{"$nulls":4},{"$f":"SUM(G18,G28,G38,G48,G58)","v":{"v":0,"d":"0.00 €"}}]
[]
[null,"Hypotheken"]
[null,"Finanzinstitut ","Adresse","Telefon","Inhaber/in des Titels","Kontonummer","Saldo ","Anmerkungen"]
[]
[]
[]
[]
[]
[null,"Ergebnis",{"$nulls":4},{"$f":"SUBTOTAL(109,tblBankAccounts2[[Saldo ]])","v":{"v":0,"d":"0.00 €"}}]
[]
[]
[null,"Private Kredite und Dispokredite"]
[null,"Finanzinstitut","Adresse","Telefon"," Kontonummer","Art","Saldo ","Anmerkungen"]
[]
[]
[]
[]
[]
[null,"Ergebnis",{"$nulls":4},{"$f":"SUBTOTAL(109,tblPersonalInvestments3[[Saldo ]])","v":{"v":0,"d":"0.00 €"}}]
[]
[]
[null,"Unternehmensbeteiligungen"]
[null,"Firmenname","Adresse"," Telefon"," Kontakt","Art","Wert ","Anmerkungen"]
[]
[]
[]
[]
[]
[null,"Ergebnis",{"$nulls":4},{"$f":"SUBTOTAL(109,tblBusinessInterests4[[Wert ]])","v":{"v":0,"d":"0.00 €"}}]
[]
[]
[null,"Kreditkarten"]
[null,"Kreditkartenunternehmen","Firmenadresse","Telefon","Kartennummer","Ablaufdatum ","Saldo ","Anmerkungen"]
[]
[]
[]
[]
[]
[null,"Ergebnis",{"$nulls":4},{"$f":"SUBTOTAL(109,tblRealEstate5[[Saldo ]])","v":{"v":0,"d":"0.00 €"}}]
[]
[]
[null,"Andere Verbindlichkeiten"]
[null,"Beschreibung des Gegenstandes","Ort","Telefon","Kontakt","Begünstigter","Wert ","Anmerkungen"]
[]
[]
[]
[]
[]
[null,"Ergebnis",{"$nulls":4},{"$f":"SUBTOTAL(109,tblPensionPlans6[[Wert ]])","v":{"v":0,"d":"0.00 €"}}]